Cogmind - Beta 12 @@@ ROGUE MODE // 2023.03.22 @ 04:00:55 // Winter2019/RPGLIKE Player: Rainynight Result: Destroyed self with Heavy Missile Launcher Performance ------------- Evolutions (2) 1000 Regions Visited (5) 1000 Robots Destroyed (36) 180 Value Destroyed (939) 939 Prototype IDs (0) 0 Alien Tech Used (0) 0 Bonus (118) 118 TOTAL SCORE: 3237 Bonus ------- High Alert Combat Kills 83 Follower Combat Kills 35 Cogmind --------- Core Integrity 0/600 Matter 115/300 Energy 170/170 System Corruption 0% Temperature Hot (204) Movement Treading (250) Ox1 Location -8/Materials Parts ------- > --- POWER (1) -------- Makeshift Power Source > --- PROPULSION (3) --- Armored Treads Wheel Wheel > --- UTILITY (6) ------ Improved Targeting Computer Improved Targeting Computer Improved Targeting Computer Melee Analysis Suite Shock Absorption System > --- WEAPON (3) ------- Heavy Missile Launcher Heavy Missile Launcher Heavy Missile Launcher > --- INVENTORY (2) ---- High-capacity Matter Pod (200) High-capacity Matter Pod (0) Peak State ------------ > --- POWER ------------ Makeshift Power Source > --- PROPULSION ------- Armored Treads Wheel Wheel > --- UTILITY ---------- Improved Targeting Computer Improved Targeting Computer Improved Targeting Computer Melee Analysis Suite Improved Weapon Shielding Shock Absorption System > --- WEAPON ----------- Heavy Missile Launcher Heavy Missile Launcher Heavy Missile Launcher > --- INVENTORY -------- High-capacity Matter Pod High-capacity Matter Pod [Rating: 37] Favorites ----------- Power Ion Engine Engine Ion Engine Propulsion Hover Unit Treads Armored Treads Wheel Wheel Hover Unit Hover Unit Utility Improved Targeting Computer Device Weight Redist. System Processor Improved Targeting Computer Protection Medium Armor Plating Weapon Rocket Launcher Energy Gun Small Laser Ballistic Cannon Light Cannon Launcher Rocket Launcher Build | -11 -10 -10 -9 -9 -8 ------- Run | Jun Mat Min Mat Min Mat Slots Evolved 9 | 3 . . 4 . 2 Power . | . . . . . . Propulsion 2 | 1 . . 1 . . Utility 5 | 1 . . 2 . 2 Weapon 2 | 1 . . 1 . . Parts Attached 28 | 5 7 . 3 2 11 Power 2 | 1 . . . . 1 Engine 2 | 1 . . . . 1 Core . | . . . . . . Reactor . | . . . . . . Propulsion 9 | 2 2 . . 2 3 Treads 3 | 1 . . . . 2 Leg . | . . . . . . Wheel 4 | 1 . . . 2 1 Hover 2 | . 2 . . . . Flight . | . . . . . . Utility 8 | . 2 . 2 . 4 Device 2 | . . . 1 . 1 Storage . | . . . . . . Processor 4 | . 2 . . . 2 Hackware . | . . . . . . Protection 2 | . . . 1 . 1 Artifact . | . . . . . . Weapon 9 | 2 3 . 1 . 3 Energy Gun 2 | 2 . . . . . Energy Cannon . | . . . . . . Ballistic Gun . | . . . . . . Ballistic Cannon 1 | . 1 . . . . Launcher 6 | . 2 . 1 . 3 Special Weapon . | . . . . . . Impact Weapon . | . . . . . . Slashing Weapon . | . . . . . . Piercing Weapon . | . . . . . . Special Melee Weapon . | . . . . . . Unidentified Prototypes . | . . . . . . Parts Lost 1 | . . . . . 1 Power . | . . . . . . Propulsion . | . . . . . . Utility 1 | . . . . . 1 Weapon . | . . . . . . Highest Loss Streak 1 | . . . . . 1 To Critical Strikes . | . . . . . . Average Slot Usage (%) 95 | . 91 100 90 98 98 Engine 10 | . 14 14 9 9 7 Treads 2 | . 3 . . . 3 Wheel 9 | . 3 . . 14 18 Hover 12 | . 19 28 19 10 . Device 3 | . . . 8 9 2 Processor 24 | . 22 28 19 18 28 Protection 6 | . . . 7 9 12 Launcher 24 | . 22 28 25 27 23 Naked Turns . | . . . . . . Heaviest Build 34 | 8 13 13 23 23 34 Greatest Support 47 | 20 17 17 23 31 47 Greatest Overweight (x) 4 | 2 4 . . 1 1 Average Overweight (x) . | . . . . . . Largest Inventory Capacity 2 | 2 2 2 2 2 2 Average Capacity 2 | 2 2 2 2 2 2 Most Carried 2 | 1 2 2 2 2 2 Average Carried 1 | . 1 2 1 2 1 Final Capacity 2 | 2 2 2 2 2 2 Final Carried 2 | 1 2 2 2 2 2 Class Distribution -------------------- 58% | Bomber 41% | Mutant Dominant Class ---------------- Mutant | -10/Materials Mutant | -10/Mines Bomber | -9/Materials Bomber | -9/Mines Bomber | -8/Materials Resources | -11 -10 -10 -9 -9 -8 ----------- Run | Jun Mat Min Mat Min Mat Matter Collected 1576 | 208 73 38 723 48 486 Remotely . | . . . . . . Salvage Created 543 | . 120 23 147 15 238 Parts 58 | . 8 5 14 3 28 Haulers Intercepted 2 | . 1 . . . 1 Recyclers Shooed . | . . . . . . Parts Field Recycled . | . . . . . . Retrieved Matter . | . . . . . . Parts Self-Destructed . | . . . . . . Prevented . | . . . . . . Kills | -11 -10 -10 -9 -9 -8 ------- Run | Jun Mat Min Mat Min Mat Combat Hostiles Destroyed 24 | . 8 3 3 . 10 AOE 24 | . 8 3 3 . 10 Classes Destroyed 9 | . 5 . 1 1 2 Worker 3 | . . . . 1 2 Builder 5 | . 1 . 2 . 2 Hauler 2 | . 1 . . . 1 Watcher 2 | . 1 . . . 1 Swarmer 9 | . 6 3 . . . Grunt 8 | . 2 . 1 . 5 Brawler 1 | . . . . . 1 Sentry 3 | . . . 2 . 1 Hunter 3 | . . . . . 3 Best Kill Streak 10 | . 10 3 5 1 6 Combat Bots Only 8 | . 8 3 3 . 5 Max Kills in Single Turn 3 | . 3 3 3 1 3 Gunslinging . | . . . . . . Exploded 3 | . 3 3 1 . 3 Melee . | . . . . . . Uniques/NPCs Destroyed . | . . . . . . Combat | -11 -10 -10 -9 -9 -8 -------- Run | Jun Mat Min Mat Min Mat Damage Taken 1030 | . 98 16 102 15 799 Core 702 | . 80 16 63 12 531 Absorbed by Shields . | . . . . . . Redirected to Core 553 | . 60 . 63 12 418 Redirected to Shielding 100 | . . . . . 100 Core Remaining (%) 89 | 100 . 84 . 85 . Volleys Fired 31 | . 10 1 3 . 17 Largest 3 | . 2 2 3 . 3 Hottest 117 | . 75 66 96 . 117 Shots Fired 76 | . 20 2 9 . 45 Gun 1 | . 1 . . . . Cannon 1 | . 1 . . . . Launcher 74 | . 18 2 9 . 45 Special . | . . . . . . Kinetic 1 | . 1 . . . . Thermal 1 | . 1 . . . . Explosive 74 | . 18 2 9 . 45 Electromagnetic . | . . . . . . Robot Hit Streak 19 | . 7 1 5 . 19 Robot Miss Streak 1 | . 1 1 . . 1 Penetration Max . | . . . . . . Secondary Targets . | . . . . . . Shots Hit Robots 51 | . 13 1 4 . 33 Core Hits 61 | . 12 3 9 1 36 Critical Kills . | . . . . . . Critical Parts Destroyed . | . . . . . . Critical Strikes . | . . . . . . Melee Attacks . | . . . . . . Impact . | . . . . . . Slashing . | . . . . . . Piercing . | . . . . . . Sneak Attacks . | . . . . . . Combat Hostiles . | . . . . . . Follow-up Attacks . | . . . . . . Damage Inflicted 3262 | . 912 147 195 31 1977 Guns . | . . . . . . Cannons 15 | . 15 . . . . Explosions 3216 | . 897 147 195 . 1977 Melee . | . . . . . . Ramming 31 | . . . . 31 . Kinetic 15 | . 15 . . . . Thermal 110 | . 110 . . . . Explosive 3106 | . 787 147 195 . 1977 Electromagnetic . | . . . . . . Impact . | . . . . . . Slashing . | . . . . . . Piercing . | . . . . . . Highest Corruption 1 | . 1 1 . . . Average Corruption 1 | . 1 1 . . . Corruption Purged . | . . . . . . Corruption Blocked . | . . . . . . Effects 1 | . 1 . . . . Message Errors 1 | . 1 . . . . Overload Shots . | . . . . . . Overflow Damage 255 | . 147 . . . 108 Projectiles . | . . . . . . Explosions 255 | . 147 . . . 108 Melee . | . . . . . . Knockbacks . | . . . . . . Impact . | . . . . . . Kinetic . | . . . . . . Secondary . | . . . . . . Self-Inflicted Damage 183 | . 27 17 . 15 124 Shots 10 | . 1 1 . . 8 Rammed 1 | . . . . 1 . Targets Rammed 1 | . . . . 1 . Kicked . | . . . . . . Crushed . | . . . . . . Highest Temperature 369 | . 57 12 107 . 369 Average Temperature 94 | . 23 8 49 . 129 Received Heat Transfer 261 | . 15 . 39 . 207 Siege Activations . | . . . . . . Robots Corrupted . | . . . . . . Combat Hostiles . | . . . . . . Parts Fried . | . . . . . . Impact Corruptions . | . . . . . . Robots Melted . | . . . . . . Combat Hostiles . | . . . . . . Parts Melted . | . . . . . . Heat Transferred 50 | . 50 . . . . Parts Sabotaged . | . . . . . . Parts Stolen . | . . . . . . Parts Stripped . | . . . . . . Power Chain Reactions . | . . . . . . Missiles Intercepted . | . . . . . . Alert | -11 -10 -10 -9 -9 -8 ------- Run | Jun Mat Min Mat Min Mat Peak Influence 770 | . 446 266 337 141 770 Initial 173 | . . 173 103 131 54 Average 224 | . 157 182 190 140 353 Maximum Alert Level 3 | . 2 1 1 . 3 Low Security (%) 60 | 100 65 89 55 100 28 Level 1 13 | . 9 10 44 . 11 Level 2 24 | . 24 . . . 56 Level 3 1 | . . . . . 3 Level 4 . | . . . . . . Level 5 . | . . . . . . High Security . | . . . . . . Max Security . | . . . . . . Squads Dispatched 8 | . 2 . 2 . 4 Investigation 1 | . . . . . 1 Extermination . | . . . . . . Reinforcement 7 | . 2 . 2 . 3 Assault . | . . . . . . Garrison . | . . . . . . Intercept . | . . . . . . Searches Triggered . | . . . . . . Construction Impeded 2 | . . . . . 2 Haulers Reinforced . | . . . . . . Active Scanning Responses . | . . . . . . Cargo Convoy Interrupts . | . . . . . . Stealth | -11 -10 -10 -9 -9 -8 --------- Run | Jun Mat Min Mat Min Mat Distress Signals 1 | . . . . . 1 Communications Jammed . | . . . . . . Distress Signals . | . . . . . . Times Spotted 44 | . 14 1 10 . 19 Peak Tracking Total 8 | . 5 3 8 . 6 Tactical Retreats 2 | . . . . . 2 Traps | -11 -10 -10 -9 -9 -8 ------- Run | Jun Mat Min Mat Min Mat Traps Triggered 2 | . 1 . 1 . . Indirectly . | . . . . . . Trap Hack Attempts . | . . . . . . Triggered . | . . . . . . Disarmed . | . . . . . . Reprogrammed . | . . . . . . Reused . | . . . . . . Traps Extracted . | . . . . . . Installed . | . . . . . . Triggered . | . . . . . . Machines | -11 -10 -10 -9 -9 -8 ---------- Run | Jun Mat Min Mat Min Mat Machines Disabled 9 | . 4 . 2 . 3 Max in Single Turn 3 | . 3 . 1 . 2 Machines Repaired . | . . . . . . Machines Sabotaged . | . . . . . . Overloaded Fab Kills . | . . . . . . Hacking | -11 -10 -10 -9 -9 -8 --------- Run | Jun Mat Min Mat Min Mat Machines Accessed 5 | . 2 . 1 1 1 Terminals 5 | . 2 . 1 1 1 Fabricators . | . . . . . . Repair Stations . | . . . . . . Recycling Units . | . . . . . . Scanalyzers . | . . . . . . Garrison Access . | . . . . . . Total Hacks 12 | . 6 . 1 2 3 Successful 5 | . 2 . 1 1 1 Failed 7 | . 4 . . 1 2 Catastrophic 2 | . 2 . . . . Database Lockouts . | . . . . . . Manual 8 | . 5 . . . 3 Terminals 12 | . 6 . 1 2 3 Fabricators . | . . . . . . Repair Stations . | . . . . . . Recycling Units . | . . . . . . Scanalyzers . | . . . . . . Garrison Access . | . . . . . . Terminal Hacks 5 | . 2 . 1 1 1 Robot Analysis 3 | . 2 . . . 1 Zone Layout 2 | . . . 1 1 . Fabricator Hacks . | . . . . . . Repair Station Hacks . | . . . . . . Recycling Unit Hacks . | . . . . . . Scanalyzer . | . . . . . . Garrison Access Hacks . | . . . . . . Unauthorized Hacks . | . . . . . . Terminals . | . . . . . . Fabricators . | . . . . . . Repair Stations . | . . . . . . Recycling Units . | . . . . . . Scanalyzers . | . . . . . . Garrison Access . | . . . . . . Data Cores Recovered . | . . . . . . Used . | . . . . . . Hacking Detections 5 | . 2 . 1 1 1 Full Trace Events 3 | . 2 . . . 1 Feedback Events . | . . . . . . Feedback Blocked . | . . . . . . Robot Schematics Acquired . | . . . . . . Robots Built . | . . . . . . Authchips . | . . . . . . Time . | . . . . . . Total Robot Build Rating . | . . . . . . Part Schematics Acquired . | . . . . . . Parts Built . | . . . . . . Authchips . | . . . . . . Time . | . . . . . . Total Part Build Rating . | . . . . . . Parts Repaired . | . . . . . . Time . | . . . . . . Parts Recycled . | . . . . . . Recycled Matter . | . . . . . . Retrieved Matter . | . . . . . . Retrieved Components . | . . . . . . Parts Scanalyzed . | . . . . . . Part Schematics Acquired . | . . . . . . Parts Damaged . | . . . . . . Bothacking | -11 -10 -10 -9 -9 -8 ------------ Run | Jun Mat Min Mat Min Mat Used RIF Installer . | . . . . . . Robots Hacked . | . . . . . . Non-combat . | . . . . . . Combat . | . . . . . . Robot Hacks Applied . | . . . . . . Relay Couplers Released . | . . . . . . Fabnet Peak Effective % . | . . . . . . Robots Rewired . | . . . . . . Allies Hacked . | . . . . . . Hacks Repelled . | . . . . . . Allies | -11 -10 -10 -9 -9 -8 -------- Run | Jun Mat Min Mat Min Mat Total Allies 2 | . . . . 2 . Largest Group 2 | . . . . 2 2 Highest-Rated Group 43 | . . . . 43 43 Highest-Rated Ally 31 | . . . . 31 31 Total Orders . | . . . . . . Ally Attacks 21 | . . . . . 21 Total Damage 248 | . . . . . 248 Kills 1 | . . . . . 1 Allies Corrupted . | . . . . . . Allies Melted . | . . . . . . Intel | -11 -10 -10 -9 -9 -8 ------- Run | Jun Mat Min Mat Min Mat Robot Analysis Total 2 | . 2 . . . . Derelict Logs Recovered 2 | . . 2 . . . Drone Launches . | . . . . . . Drone Recoveries . | . . . . . . Exploration | -11 -10 -10 -9 -9 -8 ------------- Run | Jun Mat Min Mat Min Mat Turns Passed 848 | 31 188 113 124 104 288 Spaces Moved 964 | 28 208 197 180 120 231 Core 9 | 6 3 . . . . Treads 2 | 1 . . . . 1 Legs . | . . . . . . Wheels 397 | 21 50 . . 96 230 Hover 556 | . 155 197 180 24 . Flight . | . . . . . . Fastest Speed 50 | 50 56 56 56 56 80 Average Speed 68 | 81 66 56 56 75 85 Slowest Speed 250 | 160 250 56 56 120 160 Overloaded Moves . | . . . . . . Propulsion Burnouts . | . . . . . . Robots Hopped . | . . . . . . Cave-ins Triggered . | . . . . . . Exploration Rate (%) 34 | 3 55 52 27 42 29 Regions Visited 5 Branch Regions 2 Pre-discovered Areas 1 | . . 1 . . . Known Exits Taken . | . . . . . . Unknown Exits Taken 5 | 1 1 1 1 1 . Scrap Searched 2 | . . . . 2 . Spaces Dug . | . . . . . . Terrain Destroyed 515 | . 120 26 46 . 323 Melee . | . . . . . . Projectile . | . . . . . . AOE 515 | . 120 26 46 . 323 Terrain Rammed . | . . . . . . Walls Destroyed . | . . . . . . Machines Disabled . | . . . . . . Actions | -11 -10 -10 -9 -9 -8 --------- Run | Jun Mat Min Mat Min Mat Total 1080 | 33 239 197 195 131 285 Wait 28 | . . . 5 8 15 Move 959 | 27 207 196 179 119 231 Hop . | . . . . . . Pick Up 7 | 1 4 . 1 . 1 Fast Attach 23 | 5 7 . 2 2 7 Attach 1 | . . . 1 . . Detach 3 | . 3 . . . . Swap 4 | . . . . . 4 Drop 19 | . 8 . . 1 10 Fire 31 | . 10 1 3 . 17 Melee . | . . . . . . Ram 1 | . . . . 1 . Kick . | . . . . . . Crush . | . . . . . . Escape Stasis . | . . . . . . Rewire . | . . . . . . Trap . | . . . . . . Miscellaneous 4 | . . . 4 . . Route ------- -11/Junkyard -10/Materials (discovered 2 exits: [*Min x2]) -10/Mines -9/Materials -9/Mines -8/Materials (discovered 1 exit: [*Fac]) History --------- Turn | Location | Event 1 | -11/Junkyard | Upgraded with Propulsion slot (x1) 1 | -11/Junkyard | Upgraded with Utility slot (x1) 1 | -11/Junkyard | Upgraded with Weapon slot (x1) 16 | -11/Junkyard | Discovered new exit (range 16) 32 | -11/Junkyard | Entered Materials 61 | -10/Materials | Discovered new exit (range 10) 195 | -10/Materials | Destroyed 8 combat bots 210 | -10/Materials | Discovered new exit (range 16) 220 | -10/Materials | Entered Mines 221 | -10/Mines | Learned location of Storage (-8) 222 | -10/Mines | Reached level 2 227 | -10/Mines | Learned Materials stockpile data 237 | -10/Mines | Met a Derelict bent on vengeance 260 | -10/Mines | Learned Materials terminal intel 308 | -10/Mines | Build established: Mutant 324 | -10/Mines | Discovered new exit (range 14) 333 | -10/Mines | Entered Materials 335 | -9/Materials | Loaded intel: 12 terminal locations 335 | -9/Materials | Reached level 3 342 | -9/Materials | Upgraded with Propulsion slot (x1) 342 | -9/Materials | Upgraded with Utility slot (x2) 368 | -9/Materials | Upgraded with Weapon slot (x1) 449 | -9/Materials | Discovered new exit (range 10) 457 | -9/Materials | Entered Mines 459 | -9/Mines | Reached level 4 546 | -9/Mines | Discovered new exit (range 8) 561 | -9/Mines | Entered Materials 561 | -8/Materials | Accompanied by 2 allies 563 | -8/Materials | Reached level 5 566 | -8/Materials | Led the pair of lost Derelicts to an unsafe place 569 | -8/Materials | Upgraded with Utility slot (x2) 647 | -8/Materials | Build established: Bomber 791 | -8/Materials | Reached level 6 799 | -8/Materials | Discovered new exit (range 8) 808 | -8/Materials | Core integrity fell below 50% 829 | -8/Materials | Core integrity fell below 20% 849 | -8/Materials | Destroyed self with Heavy Missile Launcher Last Messages --------------- 00803_ Imp. Weapon Shielding destroyed. 00805_ The unstable cave ceiling collapses. 00805_ Penetrated by Slug. 00806_ H-55 Commando destroyed. 00807_ Critical hit (Burn: +37). 00808_ U-05 Engineer lays Concrete. 00810_ U-05 Engineer destroyed. 00810_ Destroyed Welding Torch. 00810_ U-05 Engineer destroyed. 00814_ The unstable cave ceiling collapses. 00818_ Dropped Hcp. Matter Pod. 00819_ Extracted 200 matter. 00820_ Acquired Hcp. Matter Pod. 00821_ The unstable cave ceiling collapses. 00830_ U-05 Engineer builds a Door. 00832_ The unstable cave ceiling collapses. 00840_ G-47 Trooper destroyed. 00840_ Destroyed Lgt. Nuclear Core. 00840_ A-02 Transporter destroyed. 00845_ G-47 Trooper destroyed. Map ----- +----------------------------------------------------+ | ???????????????????????????????????????????????? | | ???????????????????????????????????????????????? | | ???????????????????????????????????????????????? | | ???????????????????????????????????????????????? | | ???????????????????????????????????????????????? | | ???????????????????????????????????????????????? | | ???????????????????????????????????????????????? | | ???????????????????????????????????????????????? | | ???????????????????????????????????????????????? | | ???????????????????????????????????????????????? | | ??????????????????????? ???????????????????? | | ????????????????????? ?????????????????? | | ??????????????????## ????????????????? | | ??????????????????# ????????????????? | | ??????????????????# #????????????????? | | ??????????????????# ###+?????????????? | | ??????????????????? ??????????????? | | ???????????????????# = == ??????????????? | | ???????????????????# = % ???????????????? | | ???????????????????# [!! = "????????????????? | | ???????????????????# !! ?????????????????? | | ???????????????????# !! ??????????????????? | | ???????????????????# #?????????? #??????? | | ????????????????????? #?????????? ## ????? | | ??????????????????????? ??#+#?#####+ ??? | | ????????????????????????#@#???# #?# " ?? | | ???????????????????????##l #### ### " # | | ???????????????????????# # # | | ???????????????????????# / | | ???????????????????????# # | | ???????????????????????######## # | | ??????????????????????????????# # # | | ????????????????????????????### # # ? | | ????????????????????????????# #?? | | ????????????????????????????# # ### #??? | | ???????????????????????????## # #??? | | ???????????????????????????# < #??? | | ???????????????????????????# #??? | | ???????????????????????????# #??? | | ???????????????????????????# # # ##??? | | ???????????????????????????## # # ##??? | | ????????????????????????????# # # ####? | | ????????????????????????????#### !!#? | | ???????????????????????????????##### ! !! # !!#? | | ???????????????????????????????????# # ]]#? | | ??????#############??????????????########/#!]]#? | | ?????##% ??? !#? | | ?????#% #####?????????????????######## !!#? | | ?????#% #???????????????????????????? ####? | | ?????# ##########??????????????????? ##???? | +----------------------------------------------------+ Best States ------------- Heat Dissipation 25 Energy Generation 15 Energy Capacity 250 Matter Stores 300 Matter Capacity 300 Sight Range 16 Terrain Scan Density 10 Additional Mass Support 6 Armor Coverage 225 Resistance: EX 25 Weapon Shielding 66 Evasion (%) 53 Targeting Accuracy 18 Melee Accuracy 5 Recoil Reduction 1 Item Schematics ----------------- None Robot Schematics ------------------ None Fabricated ------------ Nothing Alien Tech Used ----------------- None Achievements -------------- None Challenges ------------ None RPGLIKE | -11 -10 -10 -9 -9 -8 --------- Run | Jun Mat Min Mat Min Mat Levels Raised 5 | . . 1 1 1 2 XP Earned 11136 | 3000 1355 850 2100 500 3331 XP Spent 8950 | 2250 100 . 3500 . 3100 Upgrades 12 | 5 1 . 4 . 2 Propulsion Slot 2 | 1 . . 1 . . Utility Slot 5 | 1 . . 2 . 2 Weapon Slot 2 | 1 . . 1 . . Mass Support 1 | . 1 . . . . Inventory Capacity 2 | 2 . . . . . Protomatter Created 162 | . . . 28 . 134 Integrity Restored 84 | . . . 84 . . Core 84 | . . . 84 . . Protomatter Decayed 16 | . . . . . 16 Game ------ Seed AdvancedPotentialBarrier Manual? 0 Play Time 00:12:48 Cumulative 262.9 hours Start 2023.03.22 @ 03:49:34 End 2023.03.22 @ 04:00:55 Sessions 1 Manual Loads 0 Difficulty Rogue Special Mode Winter2019/RPGLIKE Game No. 242 Rogue 225 Adventurer 1 Explorer 16 Win Type - Total 15 Types 12/1/0/2/0/0/0/0/0 Lore% 73 Gallery% 79 Achievement% 70 Wizard Run 0 Options --------- ASCII 1 Keyboard 1 Movement Numpad Keybinds 1 Fullscreen 1 Font 18/X11 Map View 76x50 Tactical HUD 1 Map Filters NONE Filters NONE Steam X RUN: 298f5f85-1d50-412a-92e7-69286e09ff61